bitfinex-derivatives/quotes_BTCF0:USTF0_20251230
["timestamp","ask_amount","ask_price","bid_price","bid_amount"]
[1767110203815,0.001,89222.0,89198.0,0.0112241]
[1767110204317,0.00016818,89219.0,89201.0,0.00016818]
[1767110205119,0.0112217,89218.0,89201.0,0.00016818]
[1767110205825,0.0112217,89218.0,89193.0,0.0954]
[1767110205826,0.0112227,89210.0,89193.0,0.0954]
[1767110206120,0.0112223,89214.0,89192.0,0.0954]
[1767110206620,0.0112223,89214.0,89167.0,0.0112281]
[1767110206621,0.0954,89214.0,89176.0,0.0112269]
[1767110206820,0.00016818,89204.0,89186.0,0.00016818]
[1767110207119,0.0112236,89203.0,89186.0,0.00016818]
[1767110207311,0.00016818,89204.0,89175.0,0.011227]
[1767110207514,0.0954,89203.0,89176.0,0.0954]
[1767110207712,0.0112257,89186.0,89163.0,0.0112285]
[1767110208012,0.03450039,89185.0,89172.0,0.0112274]
[1767110208220,0.03450039,89184.0,89168.0,0.0954]
[1767110208413,0.03450039,89183.0,89170.0,0.0112276]
[1767110208611,0.03450039,89182.0,89170.0,0.0112276]
[1767110208812,0.03450039,89181.0,89169.0,0.0112278]
[1767110209013,0.03450039,89180.0,89167.0,0.00016818]
[1767110209328,0.03450039,89179.0,89167.0,0.09556818]
[1767110209622,0.03450039,89178.0,89167.0,0.09556818]
[1767110209821,0.03450039,89177.0,89167.0,0.09556818]
[1767110210006,0.03450039,89176.0,89167.0,0.09556818]
[1767110210210,0.00016818,89185.0,89168.0,0.011228]
[1767110210420,0.00016818,89185.0,89167.0,0.09556818]
[1767110211014,0.00016818,89185.0,89135.0,0.06138916]
[1767110211015,0.0112262,89182.0,89135.0,0.06138916]
[1767110211222,0.0112269,89177.0,89147.0,0.1522]
[1767110211520,0.0112264,89181.0,89148.0,0.1522]
[1767110211713,0.0954,89182.0,89149.0,0.0954]
[1767110211714,0.0112267,89178.0,89149.0,0.0954]
[1767110211916,0.0954,89182.0,89146.0,0.0954]
[1767110212117,0.00016818,89173.0,89155.0,0.00016818]
[1767110212316,0.00016818,89173.0,89159.0,0.0112291]
[1767110213021,0.00016818,89173.0,89158.0,0.0112292]
[1767110213523,0.00016818,89173.0,89156.0,0.04078241]
[1767110213718,0.00016818,89173.0,89155.0,0.00016818]
[1767110214027,0.1522,89172.0,89126.0,0.00012713]
[1767110214219,0.1522,89172.0,89146.0,0.0112307]
[1767110214413,0.0112277,89171.0,89146.0,0.0112307]
[1767110215125,0.0112277,89171.0,89150.0,0.00016818]
[1767110215622,0.1522,89172.0,89150.0,0.00016818]
[1767110216117,0.0112282,89167.0,89143.0,0.0112311]
[1767110216526,0.0112277,89171.0,89143.0,0.0112311]
[1767110216915,0.1522,89172.0,89148.0,0.00011214]
[1767110217120,0.1522,89172.0,89138.0,0.1066317]
[1767110217510,0.1522,89172.0,89138.0,0.0954]
[1767110217715,0.0112297,89155.0,89138.0,0.0954]
[1767110217913,0.01123,89152.0,89126.0,0.01136033]
[1767110218121,0.0112307,89147.0,89126.0,0.00012713]
[1767110219025,0.00016818,89148.0,89126.0,0.00012713]
[1767110219617,0.01139878,89148.0,89126.0,0.00012713]
[1767110219824,0.00016818,89148.0,89126.0,0.00012713]
[1767110220021,0.00016818,89148.0,89091.0,0.0112376]
[1767110220022,0.0112325,89132.0,89112.0,0.09544]
[1767110220224,0.00016828,89128.0,89112.0,0.09544]
[1767110220517,0.00016828,89128.0,89109.0,0.0112354]
[1767110220721,0.05676,89137.0,89108.0,0.1522]
[1767110221021,0.0112328,89130.0,89083.0,0.0112386]
[1767110221228,0.00010059,89136.0,89081.0,0.0111727]
[1767110221418,0.00010059,89136.0,89107.0,0.0112356]
[1767110221419,0.09544,89130.0,89107.0,0.0112356]
[1767110221609,0.00016828,89127.0,89110.0,0.00016828]
[1767110222021,0.00016828,89127.0,89111.0,0.0112351]
[1767110222224,0.03349036,89126.0,89111.0,0.0112351]
[1767110222412,0.03359389,89125.0,89111.0,0.0112351]
[1767110222608,0.03349036,89124.0,89111.0,0.0111851]
[1767110222809,0.03349036,89123.0,89111.0,0.0111851]
[1767110223024,0.0112308,89146.0,89117.0,0.0112343]
[1767110223327,0.09544,89150.0,89110.0,0.00016828]
[1767110223328,0.17563777,89150.0,89118.0,0.15224]
[1767110223515,0.0112305,89149.0,89118.0,0.1634742]
[1767110223714,0.0112308,89146.0,89118.0,0.15224]
[1767110224225,0.00016828,89141.0,89118.0,0.15224]
[1767110224520,0.0680673,89173.0,89142.0,0.0112311]
[1767110224723,0.0680673,89173.0,89143.0,0.15228]
[1767110224919,0.0112279,89169.0,89135.0,0.0112321]
[1767110225126,0.0112279,89169.0,89138.0,0.0112317]
[1767110225313,0.00016828,89162.0,89145.0,0.00016828]
[1767110226724,0.01139698,89162.0,89146.0,0.15228]
[1767110226926,0.0112293,89158.0,89145.0,0.00016828]
[1767110227112,0.0112294,89157.0,89145.0,0.00016828]
[1767110227318,0.0112294,89157.0,89066.0,0.0112408]
[1767110227319,0.0112299,89153.0,89135.0,0.09544]
[1767110227522,0.0112299,89153.0,89124.0,0.0112334]
[1767110227721,0.0112294,89157.0,89128.0,0.011233]
[1767110228022,0.0112294,89157.0,89129.0,0.09544]
[1767110228227,0.00016828,89152.0,89134.0,0.00016828]
[1767110228829,0.00016828,89152.0,89133.0,0.09544]
[1767110229331,0.00016828,89152.0,89137.0,0.0112318]
[1767110229522,0.00016828,89152.0,89137.0,0.1066718]
[1767110229916,0.00016828,89152.0,89140.0,0.0112314]
[1767110230118,0.0112276,89171.0,89143.0,0.0112311]
[1767110230326,0.0112281,89168.0,89143.0,0.0112311]
[1767110231029,0.0112281,89168.0,89144.0,0.15224]
[1767110231232,0.00016828,89165.0,89144.0,0.15224]
[1767110231922,0.00016828,89165.0,89145.0,0.0112308]
[1767110233829,0.0112291,89159.0,89146.0,0.0568]
[1767110234026,0.0112295,89156.0,89136.0,0.01140018]
[1767110234225,0.0112295,89156.0,89138.0,0.0112317]
[1767110234429,0.0112295,89156.0,89137.0,0.11924]
[1767110234829,0.0112289,89161.0,89137.0,0.1304718]
[1767110235130,0.0112296,89156.0,89137.0,0.11924]
[1767110235332,0.09544,89164.0,89134.0,0.09544]
[1767110235333,0.0112305,89148.0,89134.0,0.09544]
[1767110235534,0.0112305,89148.0,89129.0,0.0112328]
[1767110235830,0.0112315,89141.0,89113.0,0.1121749]
[1767110236134,0.0112289,89161.0,89114.0,0.09544]
[1767110236135,0.03103136,89140.0,89114.0,0.09544]
[1767110236330,0.01140038,89136.0,89118.0,0.00016828]
[1767110236631,0.00016828,89136.0,89118.0,0.00016828]
[1767110237024,0.00016828,89136.0,89122.0,0.0112338]
[1767110237228,0.00011828,89136.0,89119.0,0.0112341]
[1767110237630,0.00011828,89136.0,89118.0,0.00016828]
[1767110237631,0.09544,89158.0,89118.0,0.00016828]
[1767110237834,0.03106483,89157.0,89139.0,0.0112315]
[1767110238027,0.03106483,89156.0,89141.0,0.0112313]
[1767110238334,0.0112303,89150.0,89128.0,0.0112329]
[1767110238522,0.03106483,89149.0,89129.0,0.1302729]
[1767110238719,0.03123311,89148.0,89130.0,0.09560828]
[1767110238926,0.00016828,89148.0,89136.0,0.0112319]
[1767110239132,0.03096897,89147.0,89135.0,0.09544]
[1767110239433,0.1066683,89166.0,89142.0,0.0112312]
[1767110239629,0.0112286,89164.0,89139.0,0.0112316]
[1767110239831,0.0112288,89162.0,89139.0,0.0112316]
[1767110240041,0.03098337,89161.0,89135.0,0.09544]
[1767110240230,0.00016828,89157.0,89140.0,0.0112314]
[1767110240425,0.03098337,89156.0,89140.0,0.0112314]
[1767110241732,0.03098337,89156.0,89135.0,0.09544]
[1767110241936,0.03098337,89156.0,89143.0,0.0112311]
[1767110242228,0.03098337,89156.0,89137.0,0.0112319]
[1767110242532,0.16640531,89150.0,89132.0,0.09544]
[1767110242731,0.0112316,89140.0,89117.0,0.09544]
[1767110242929,0.1522,89155.0,89104.0,0.09544]
[1767110242930,0.0112338,89123.0,89104.0,0.09544]
[1767110243127,0.03098337,89122.0,89102.0,0.09544]
[1767110243329,0.03098337,89121.0,89101.0,0.0112363]
[1767110243637,0.03115165,89120.0,89102.0,0.00016828]
[1767110243834,0.03115165,89120.0,89077.0,0.0112393]
[1767110243835,0.03098337,89119.0,89077.0,0.0112393]
[1767110244135,0.0112348,89115.0,89091.0,0.0112376]
[1767110244433,0.03098337,89114.0,89094.0,0.0112372]
[1767110244621,0.0112344,89118.0,89094.0,0.0112372]
[1767110244932,0.00016828,89115.0,89097.0,0.01140508]
[1767110245128,0.03090557,89114.0,89097.0,0.01140508]
[1767110245633,0.03090557,89114.0,89097.0,0.00016828]
[1767110245934,0.00016828,89115.0,89105.0,0.0112359]
[1767110246135,0.00016828,89115.0,89100.0,0.0112365]
[1767110246336,0.03089605,89114.0,89100.0,0.0112365]
[1767110246532,0.00016828,89115.0,89100.0,0.0112365]
[1767110246722,0.03088629,89114.0,89073.0,0.0112399]
[1767110246925,0.03088638,89113.0,89092.0,0.0112374]
[1767110247131,0.03088638,89112.0,89094.0,0.0112372]
[1767110247331,0.00016828,89115.0,89094.0,0.0112372]
[1767110247533,0.03087776,89114.0,89098.0,0.0112367]
[1767110247733,0.00016828,89115.0,89095.0,0.0112372]
[1767110248535,0.00016828,89115.0,89093.0,0.09544]
[1767110248836,0.00016828,89115.0,89021.0,0.13792648]
[1767110248837,0.16640531,89110.0,89075.0,0.09548]
[1767110249043,0.16640531,89110.0,89053.0,0.23868]
[1767110249044,0.16640531,89090.0,89070.0,0.09548]
[1767110249338,0.00016828,89115.0,89070.0,0.09548]
[1767110249339,0.00016839,89089.0,89079.0,0.0112392]
[1767110249640,0.00016839,89093.0,89075.0,0.0112396]
[1767110250036,0.00016839,89093.0,89071.0,0.0112401]
[1767110250225,0.00016839,89093.0,89074.0,0.0112398]
[1767110250540,0.00016839,89093.0,89077.0,0.0112393]
[1767110252139,0.00016839,89093.0,89072.0,0.01124]
[1767110252332,0.00016839,89093.0,89070.0,0.09548]
[1767110252528,0.00016839,89093.0,89041.0,0.06169504]
[1767110252529,0.16640531,89090.0,89041.0,0.06169504]
[1767110252736,0.0112381,89088.0,89063.0,0.09548]
[1767110252937,0.15224,89087.0,89061.0,0.0112414]
[1767110253139,0.03080647,89086.0,89055.0,0.09548]
[1767110253339,0.00016839,89093.0,89065.0,0.15224]
[1767110253543,0.05692839,89093.0,89073.0,0.0112399]
[1767110253933,0.05692839,89093.0,89076.0,0.0112395]
[1767110254139,0.0112348,89114.0,89084.0,0.0112385]
[1767110254443,0.0112351,89112.0,89077.0,0.09548]
[1767110254639,0.12621438,89111.0,89077.0,0.09548]
[1767110254840,0.15224,89118.0,89080.0,0.16640531]
[1767110255044,0.03072051,89117.0,89080.0,0.16640531]
[1767110255243,0.00016839,89107.0,89090.0,0.00016839]
[1767110255543,0.05676,89118.0,89099.0,0.0112366]
[1767110255728,0.0112329,89129.0,89091.0,0.15224]
[1767110255729,0.15224,89131.0,89105.0,0.0112358]
[1767110256536,0.00016839,89127.0,89109.0,0.00016839]
[1767110257140,0.202,89159.0,89122.0,0.0112337]
[1767110257342,0.0112301,89151.0,89124.0,0.0112335]
[1767110257646,0.05676,89153.0,89123.0,0.09548]
[1767110257838,0.05676,89153.0,89129.0,0.0112328]
[1767110258035,0.0112309,89145.0,89090.0,0.16640531]
[1767110258235,0.0112309,89145.0,89119.0,0.0112341]
[1767110258236,0.00016829,89130.0,89119.0,0.0112341]
[1767110258438,0.00016829,89130.0,89120.0,0.15228]
[1767110258943,0.00016829,89130.0,89121.0,0.0112339]
[1767110259146,9e-08,89130.0,89121.0,0.0112339]
[1767110259543,0.09548,89148.0,89120.0,0.31868531]
[1767110259745,0.05676,89153.0,89120.0,0.15228]
[1767110259939,0.05676,89153.0,89130.0,0.0112327]
[1767110260338,0.05676,89153.0,89133.0,0.0112323]
[1767110260533,0.00016829,89152.0,89134.0,0.00016829]
[1767110261148,0.00016829,89152.0,89134.0,0.01140049]
[1767110262345,0.00016829,89152.0,89134.0,0.00016829]
[1767110264348,0.0112301,89151.0,89134.0,0.00016829]
[1767110264545,0.0112305,89148.0,89134.0,0.00016829]
[1767110264744,0.0112309,89145.0,89116.0,0.0112345]
[1767110264953,0.16640531,89140.0,89106.0,0.0112357]
[1767110265152,0.09548,89145.0,89107.0,0.1128]
[1767110265442,0.05676,89144.0,89108.0,0.09548]
[1767110265637,0.0679911,89144.0,89117.0,0.0112344]
[1767110265839,0.00016829,89139.0,89122.0,0.00016829]
[1767110266142,0.00016829,89139.0,89123.0,0.0112336]
[1767110266644,0.00016829,89139.0,89122.0,0.01140199]
[1767110266849,0.00016829,89139.0,89122.0,0.00016829]
[1767110267046,0.0112321,89136.0,89111.0,0.05676]
[1767110267245,0.00016829,89139.0,89103.0,0.09548]
[1767110267246,0.16640531,89130.0,89103.0,0.09548]
[1767110267441,0.0112328,89130.0,89104.0,0.09548]
[1767110267642,0.0679928,89130.0,89104.0,0.09548]
[1767110267941,0.1419458,89172.0,89104.0,0.09548]
[1767110268148,0.00016829,89139.0,89122.0,0.01140199]
[1767110268443,0.00016829,89139.0,89125.0,0.0112333]
[1767110268653,0.00016829,89139.0,89124.0,0.0112334]
[1767110269355,0.01139999,89139.0,89122.0,0.00016829]
[1767110269551,0.00016829,89139.0,89122.0,0.00016829]
[1767110269737,0.00016829,89139.0,89123.0,0.09548]
[1767110269942,0.00016829,89139.0,89124.0,0.0112335]
[1767110270142,0.00016829,89139.0,89125.0,0.09548]
[1767110270755,0.00016829,89139.0,89126.0,0.0112332]
[1767110271352,0.00016829,89139.0,89125.0,0.09548]
[1767110271553,0.00016829,89139.0,89122.0,0.00016829]
[1767110271754,0.0112335,89125.0,89102.0,0.1067162]
[1767110271954,0.0112336,89124.0,89104.0,0.011236]
[1767110272454,0.0112334,89126.0,89103.0,0.106716]
[1767110272648,0.0112334,89126.0,89106.0,0.0112358]
[1767110272849,0.00016829,89123.0,89106.0,0.01140409]
[1767110273046,0.00016829,89123.0,89112.0,0.0112349]
[1767110273251,0.00016829,89123.0,89114.0,0.0112347]
[1767110273651,0.00016829,89123.0,89103.0,0.08458299]
[1767110273852,0.00016829,89123.0,89111.0,0.0112351]
[1767110274443,0.00016829,89123.0,89101.0,0.09548]
[1767110275448,0.00016829,89123.0,89108.0,0.0112355]
[1767110275850,0.00016829,89123.0,89101.0,0.09548]
[1767110276356,0.00016829,89123.0,89108.0,0.0112355]
[1767110276557,0.01140199,89123.0,89102.0,0.0112362]
[1767110276748,0.01140199,89123.0,89100.0,0.05676]
[1767110276749,0.0112344,89118.0,89100.0,0.05676]
[1767110276955,0.0112343,89118.0,89084.0,0.0112385]
[1767110277153,0.0112339,89121.0,89099.0,0.0112365]
[1767110277354,0.00016829,89119.0,89099.0,0.0112365]
[1767110277550,0.00016829,89119.0,89101.0,0.0112363]
[1767110278952,0.00016829,89119.0,89079.0,0.0112391]
[1767110278953,0.0112343,89118.0,89079.0,0.0112391]
[1767110279150,0.00016829,89119.0,89049.0,0.1126]
[1767110279151,0.00016829,89119.0,89080.0,0.15224]
[1767110279346,0.00016829,89108.0,89097.0,0.0112368]
[1767110279857,0.00016829,89108.0,89095.0,0.0112371]
[1767110280261,0.00016829,89108.0,89097.0,0.0112368]
[1767110280563,0.0112364,89101.0,89078.0,0.0112392]
[1767110280864,0.22316531,89107.0,89078.0,0.09548]
[1767110280865,0.05676,89107.0,89078.0,0.09548]
[1767110281160,0.05676,89107.0,89079.0,0.05676]
[1767110281361,0.00016829,89108.0,89080.0,0.16640531]
[1767110281556,0.202,89117.0,89080.0,0.16640531]
[1767110281765,0.09548,89118.0,89095.0,0.0112372]
[1767110281950,0.0112344,89117.0,89094.0,0.15228]
[1767110282264,0.0112344,89117.0,89012.0,0.13792648]
[1767110282265,0.0112361,89104.0,89085.0,0.09548]
[1767110282453,0.16640531,89110.0,89066.0,0.0112408]
[1767110282454,0.00016829,89103.0,89086.0,0.00016829]
[1767110283560,0.16640531,89100.0,89078.0,0.15228]
[1767110283859,0.00016829,89103.0,89072.0,0.0568]
[1767110283860,0.011238,89089.0,89072.0,0.0568]
[1767110284161,0.16640531,89090.0,89064.0,9.891e-05]
[1767110284364,0.0112391,89080.0,89064.0,9.891e-05]
[1767110284556,0.0568,89096.0,89019.0,0.1126]
[1767110284557,0.00016839,89081.0,89059.0,0.10984]
[1767110284862,0.00016839,89081.0,89058.0,0.0112418]
[1767110285052,0.00016839,89081.0,89058.0,0.1067218]
[1767110285463,0.00012251,89080.0,89058.0,0.1067218]
[1767110286258,0.00012251,89080.0,89061.0,0.0112414]
[1767110286466,0.00012251,89080.0,89064.0,0.011241]
[1767110287754,0.0112393,89078.0,89058.0,0.09548]
[1767110287961,0.0112397,89076.0,89058.0,0.09548]
[1767110288368,0.0112397,89076.0,89055.0,0.15228]
[1767110289061,0.16640531,89070.0,89037.0,0.0112445]
[1767110289266,0.16640531,89070.0,89039.0,0.0112442]
[1767110289267,0.00016839,89062.0,89039.0,0.0112442]
[1767110289569,0.00016839,89062.0,89040.0,0.11284]
[1767110289957,0.00016839,89062.0,89039.0,0.0112442]
[1767110290158,0.00011718,89061.0,89039.0,0.0112442]
[1767110291666,0.00011718,89061.0,89036.0,0.09552]
[1767110291867,0.16640531,89060.0,89026.0,0.0568]
[1767110292060,0.0112422,89056.0,89030.0,0.0112453]
[1767110292363,0.0112425,89054.0,89030.0,0.0112453]
[1767110292563,0.16640531,89050.0,89022.0,0.0112463]
[1767110292764,0.16640531,89050.0,89000.0,0.0612491]
[1767110292765,0.00016839,89045.0,89023.0,0.15232]
[1767110293070,0.1067613,89062.0,89034.0,0.0112449]
[1767110293265,0.1067613,89062.0,89036.0,0.0112446]
[1767110293660,0.02981081,89061.0,89036.0,0.0112446]
[1767110293863,0.00016839,89057.0,89040.0,0.00016839]
[1767110294061,4.028e-05,89056.0,89040.0,0.00016839]
[1767110294262,0.08467047,89062.0,89040.0,0.00016839]
[1767110294560,0.0112417,89060.0,89040.0,0.00016839]
[1767110295069,0.08467047,89062.0,89040.0,0.00016839]
[1767110295267,0.15232,89070.0,89040.0,0.00016839]
[1767110295565,0.1635604,89070.0,89043.0,0.0112437]
[1767110295768,0.15232,89070.0,89050.0,0.0112428]
[1767110295967,0.15232,89070.0,89040.0,0.00016839]
[1767110295968,0.15232,89070.0,89053.0,0.0112424]
[1767110296271,0.15248839,89070.0,89048.0,0.15232]
[1767110296673,0.15248839,89070.0,89048.0,0.163563]
[1767110298171,0.15248839,89070.0,89048.0,0.15232]
[1767110298470,0.15248839,89070.0,89049.0,0.15236]
[1767110299373,0.00016839,89070.0,89049.0,0.15236]
[1767110299576,0.00016839,89070.0,89058.0,0.0112418]
[1767110300372,0.16640531,89100.0,89061.0,0.0112415]
[1767110300569,0.17085683,89112.0,89059.0,0.15232]
[1767110300570,0.0112387,89083.0,89059.0,0.15232]
[1767110301484,0.00016839,89080.0,89062.0,0.00016839]
[1767110302172,0.00016839,89080.0,89063.0,0.0112412]
[1767110302974,0.00016839,89080.0,89062.0,0.00016839]
[1767110304385,0.0112395,89077.0,89063.0,0.00869]
[1767110304584,0.00016839,89080.0,89063.0,0.00869]
[1767110304779,0.0112403,89071.0,89049.0,0.0112429]
[1767110304985,0.15248839,89080.0,89050.0,0.15232]
[1767110305184,0.02988308,89079.0,89051.0,0.0112427]
[1767110305379,0.01124,89073.0,89053.0,0.0112423]
[1767110305786,0.01124,89073.0,89054.0,0.00016839]
[1767110306482,0.01124,89073.0,89054.0,0.15248839]
[1767110306879,0.0112358,89107.0,89054.0,0.15248839]
[1767110307083,0.0112368,89098.0,89078.0,0.0112393]
[1767110307388,0.02986335,89097.0,89078.0,0.0112393]
[1767110307587,0.0112368,89098.0,89076.0,0.0112395]
[1767110307786,0.0112391,89081.0,89047.0,0.0568]
[1767110308086,0.00016839,89073.0,89061.0,0.0112414]
[1767110308389,0.0112376,89092.0,89057.0,0.15176]
[1767110308688,0.011238,89089.0,89067.0,0.0112406]
[1767110308881,0.011238,89089.0,89067.0,0.0680806]
[1767110309186,0.011238,89089.0,89067.0,0.0112406]
[1767110309489,0.00016839,89087.0,89069.0,0.00016839]
[1767110310880,0.091679,89117.0,89069.0,0.00016839]
[1767110311084,0.15236,89109.0,89069.0,0.00016839]
[1767110311285,0.15236,89109.0,89075.0,0.0112396]
[1767110311686,0.15236,89109.0,89079.0,0.0112392]
[1767110311878,0.00011126,89103.0,89069.0,0.00016839]
[1767110312281,0.00011126,89103.0,89074.0,0.0112398]
[1767110312487,0.00011126,89103.0,89086.0,0.0112383]
[1767110313086,0.00011126,89103.0,89084.0,0.09552]
[1767110316686,0.06134746,89103.0,89082.0,0.05684]
[1767110316990,0.0112368,89098.0,89082.0,0.05684]
[1767110317386,0.0112369,89097.0,89082.0,0.05684]
[1767110317689,0.11134756,89103.0,89082.0,0.05684]
[1767110318488,0.0112365,89101.0,89082.0,0.05684]
[1767110319287,0.02958285,89100.0,89082.0,0.05684]
[1767110319490,0.02958285,89099.0,89082.0,0.05684]
[1767110319690,0.02958093,89098.0,89082.0,0.05684]
[1767110319893,0.02958093,89097.0,89082.0,0.05684]
[1767110320096,0.0112365,89101.0,89082.0,0.05684]
[1767110320395,0.02958094,89100.0,89082.0,0.05684]
[1767110320696,0.02958094,89099.0,89082.0,0.05684]
[1767110320895,0.10011126,89103.0,89082.0,0.05684]
[1767110321092,0.01041978,89102.0,89085.0,0.0112384]
[1767110321296,0.10011126,89103.0,89085.0,0.0112384]
[1767110321494,0.10011126,89103.0,89087.0,0.0112381]
[1767110321996,0.10011126,89103.0,89083.0,0.0112386]
[1767110322194,0.10011126,89103.0,89085.0,0.0112383]
[1767110322390,0.10011126,89103.0,89082.0,0.0112387]
[1767110322591,0.0112364,89102.0,89083.0,0.15232]
[1767110322789,0.0112364,89102.0,89080.0,0.011239]
[1767110323095,0.0112371,89096.0,89078.0,0.15232]
[1767110323797,0.10011126,89103.0,89079.0,0.0112391]
[1767110323998,0.0112367,89099.0,89078.0,0.15232]
[1767110324595,0.0112375,89093.0,89078.0,0.15232]
[1767110324990,0.0112375,89093.0,89074.0,0.0112397]
[1767110325198,0.0112375,89093.0,89074.0,0.1635597]
[1767110325698,0.0112371,89096.0,89077.0,0.0112394]
[1767110326098,0.10011126,89103.0,89074.0,0.15232]
[1767110326293,0.10011126,89103.0,89092.0,0.0112375]
[1767110326498,0.10011126,89103.0,89094.0,0.0112372]
[1767110326891,0.10011126,89103.0,89097.0,0.0112369]
[1767110327096,0.15228,89108.0,89094.0,0.0112372]
[1767110327692,0.0112344,89118.0,89096.0,0.011237]
[1767110327986,0.0112346,89116.0,89093.0,0.0112374]
[1767110328190,0.0112348,89114.0,89093.0,0.0112374]
[1767110328388,0.0112357,89107.0,89089.0,0.00016839]
[1767110328601,0.0112356,89108.0,89089.0,0.00016839]
[1767110329894,0.0112352,89111.0,89089.0,0.01140629]
[1767110330293,0.09552,89115.0,89089.0,0.00016839]
[1767110331296,0.0112365,89101.0,89089.0,0.00016839]
[1767110331600,0.0112368,89099.0,89081.0,0.15228]
[1767110332193,0.0112368,89099.0,89079.0,0.0112391]
[1767110332399,0.00016839,89098.0,89080.0,0.00016839]
[1767110333303,0.00016839,89098.0,89081.0,0.0112388]
[1767110333489,0.00016839,89098.0,89080.0,0.00016839]
[1767110333695,0.00016839,89098.0,89077.0,0.05676]
[1767110333999,0.00016839,89098.0,89068.0,0.09552]
[1767110334000,0.02957063,89097.0,89068.0,0.09552]
[1767110334198,0.02957063,89097.0,89057.0,0.1122473]
[1767110334199,0.0112405,89069.0,89057.0,0.1122473]
[1767110334402,0.0112402,89072.0,89053.0,0.09552]
[1767110334591,0.15228,89076.0,89057.0,0.011242]
[1767110334796,0.15228,89076.0,89053.0,0.09552]
[1767110334797,0.00016839,89071.0,89055.0,0.0112422]
[1767110335595,0.00016839,89071.0,89058.0,0.0112417]
[1767110335902,0.15228,89076.0,89062.0,0.0112413]
[1767110336606,0.0112383,89086.0,89062.0,0.0112413]
[1767110336804,0.0112386,89084.0,89062.0,0.0112413]
[1767110337004,0.2388,89103.0,89057.0,0.011242]
[1767110337005,0.0112393,89079.0,89057.0,0.011242]
[1767110337205,0.15244839,89083.0,89056.0,0.01122]
[1767110337503,0.15244839,89083.0,89008.0,0.1126]
[1767110337799,0.15244839,89083.0,88975.0,0.19637108]
[1767110337800,0.0112411,89064.0,89038.0,0.0112443]
[1767110338001,0.0112411,89064.0,89040.0,0.0112441]
[1767110338308,0.0112409,89066.0,89040.0,0.09552]
[1767110338603,0.0112415,89061.0,89044.0,0.00016839]
[1767110338801,0.00016839,89062.0,89044.0,0.00016839]
[1767110339594,0.01140979,89062.0,89044.0,0.00016839]
[1767110339999,0.0112381,89088.0,89051.0,0.0112427]
[1767110340198,0.202,89095.0,89050.0,0.09552]
[1767110340199,0.0112401,89073.0,89050.0,0.09552]
[1767110340400,0.0112403,89071.0,89050.0,0.09552]
[1767110341007,0.09552,89074.0,89055.0,0.0112422]
[1767110341206,0.09552,89074.0,89058.0,0.0112417]
[1767110341207,0.00016839,89073.0,89058.0,0.0112417]
[1767110341403,0.00016839,89073.0,89056.0,0.00016839]
[1767110341603,0.15228,89085.0,89056.0,0.00016839]
[1767110341910,0.05676,89085.0,89068.0,0.0112405]
[1767110343007,0.55804,89112.0,89062.0,0.09552]
[1767110343302,0.18176477,89111.0,89082.0,0.0112387]
[1767110343508,0.0112338,89122.0,89082.0,0.0112387]
[1767110343509,0.0112361,89104.0,89082.0,0.0112387]
[1767110343704,0.12500477,89103.0,89082.0,0.0112387]
[1767110343905,0.02948477,89102.0,89078.0,0.00016839]
[1767110344108,0.05676,89101.0,89069.0,0.0680004]
[1767110344404,0.05676,89101.0,89069.0,0.05676]
[1767110344405,0.0112372,89096.0,89069.0,0.05676]
[1767110344800,0.0112372,89096.0,89073.0,0.0112398]
[1767110345001,0.0112367,89099.0,89076.0,0.0112396]
[1767110345309,0.00016839,89096.0,89079.0,0.00016839]
[1767110345899,0.00016839,89096.0,89079.0,0.01140759]
[1767110346401,0.00016839,89096.0,89079.0,0.00016839]
[1767110346604,0.00016839,89096.0,89067.0,0.0112407]
[1767110346810,0.02949247,89095.0,89031.0,0.0112452]
[1767110347006,0.0112385,89085.0,89033.0,0.39112]
[1767110347306,0.0112385,89085.0,89060.0,0.0112415]
[1767110347503,0.00016839,89081.0,89064.0,0.00016839]
[1767110347699,0.00016839,89081.0,89068.0,0.0112405]
[1767110348010,0.011238,89089.0,89064.0,0.00016839]
[1767110348011,0.15228,89089.0,89064.0,0.00016839]
[1767110348406,0.09552,89097.0,89080.0,0.0112391]
[1767110348602,0.02952289,89096.0,89080.0,0.0112391]
[1767110348797,0.15228,89100.0,89074.0,0.09552]
[1767110348798,0.1635166,89100.0,89076.0,0.0112395]
[1767110349002,0.00016839,89097.0,89079.0,0.00016839]
[1767110349602,0.00016839,89097.0,89083.0,0.0112386]
[1767110349806,0.00016839,89097.0,89080.0,0.0112391]
[1767110350006,0.00016839,89097.0,89083.0,0.0112387]
[1767110351513,0.00016839,89097.0,89080.0,0.011239]
[1767110351912,0.00016839,89097.0,89082.0,0.0112387]
[1767110355811,9e-08,89097.0,89079.0,0.00016839]
[1767110356014,0.15228,89128.0,89081.0,0.0112389]
[1767110356214,0.0295206,89127.0,89101.0,0.0112364]
[1767110356414,0.0112348,89115.0,89089.0,0.02356]
[1767110356618,0.011235,89113.0,89079.0,0.01135687]
[1767110356818,0.09552,89113.0,89086.0,0.05676]
[1767110357019,0.09552,89113.0,89091.0,0.01140599]
[1767110357612,0.09552,89113.0,89009.0,0.32456263]
[1767110357613,0.09552,89113.0,89066.0,0.01147286]
[1767110357819,0.0112355,89108.0,89070.0,0.0112403]
[1767110358118,0.0112379,89090.0,89071.0,0.09552]
[1767110358310,0.0112374,89094.0,89071.0,0.09552]
[1767110358813,0.00016839,89091.0,89074.0,0.00016839]
[1767110359319,0.00016839,89091.0,89074.0,0.01140809]
[1767110359519,0.00016839,89091.0,89074.0,0.00016839]
[1767110360116,0.01140619,89091.0,89074.0,0.00016839]
[1767110360317,0.0112385,89085.0,89074.0,0.00016839]
[1767110360509,0.15228,89086.0,89033.0,0.011245]
[1767110360705,0.15228,89086.0,89035.0,0.2388]
[1767110360911,0.15228,89086.0,89038.0,0.11225549]
[1767110361214,0.02936482,89085.0,89038.0,0.01148481]
[1767110361421,0.0112388,89083.0,89057.0,0.0112419]
[1767110361623,0.00016839,89070.0,89057.0,0.0112419]
[1767110362416,0.00016839,89070.0,89053.0,0.09568839]
[1767110362724,0.00016839,89070.0,89057.0,0.0112419]
[1767110364615,0.01140879,89070.0,89053.0,0.00016839]
[1767110364816,0.01140879,89070.0,89045.0,0.0112434]
[1767110364817,0.0112405,89069.0,89045.0,0.09552]
[1767110365111,0.16689966,89070.0,89046.0,0.0112433]
[1767110365316,0.16689966,89070.0,89045.0,0.09552]
[1767110365317,0.00016839,89070.0,89049.0,0.0112429]
[1767110365716,0.00016839,89070.0,89051.0,0.00016839]
[1767110366327,0.16689966,89070.0,89041.0,0.0112439]
[1767110366618,0.0112414,89062.0,89038.0,0.09552]
[1767110366920,0.0112423,89055.0,89031.0,0.0112452]
[1767110367127,0.0112423,89055.0,89010.0,0.16673127]
[1767110367128,0.09552,89055.0,89035.0,0.0112447]